Cogmind - Beta 11.1 @@@ ROGUE MODE // 2022.12.22 @ 13:38:42 Player: lyrabold Result: Escaped! Performance ------------- Evolutions (9) 4500 Regions Visited (26) 5200 Robots Destroyed (433) 2165 Value Destroyed (21320) 21320 Prototype IDs (21) 420 Alien Tech Used (0) 0 Bonus (13896) 13896 TOTAL SCORE: 47501 Bonus ------- High Alert Combat Kills 3346 Follower Combat Kills 3451 Entered Garrisons 1800 Used RIF Installer 4000 Aligned with FarCom 300 Win 3000 Friendly Fire -2001 Cogmind --------- Core Integrity 1573/1600 Matter 280/300 Energy 181/190 System Corruption 0% Temperature Cool (6) Movement Walking (120) Location To Epsilon Eridani Parts ------- > --- POWER (2) -------- Light Quantum Reactor > --- PROPULSION (6) --- Biometal Heavy Treads Myomer Leg Centrium Leg Centrium Leg Improved Diametric Drive > --- UTILITY (14) ----- Improved Coolant Injector Large Storage Unit Transport Network Coupler Layered Medium Armor Plating Hacking Suite Improved Hacking Suite Relay Coupler [Duelist] (12) Relay Coupler [Hunter] (13) > --- WEAPON (3) ------- Long-range Phase Cannon Enhanced Nova Cannon > --- INVENTORY (15) --- Gravmag Array Gravmag Array Advanced Weight Redist. System Advanced Reaction Control System Faulty Beam Splitter Heavy Laser Advanced Remote Datajack Peak State ------------ > --- POWER ------------ Light Quantum Reactor Light Quantum Reactor > --- PROPULSION ------- Medium Treads Medium Treads Medium Treads Medium Treads > --- UTILITY ---------- Experimental Power Amplifier Advanced Heat Sink Advanced Heat Sink Improved Coolant Injector Huge Storage Unit Advanced Phase Shifter Advanced Powered Armor Experimental Shield Generator Relay Coupler [NC] Relay Coupler [Duelist] Relay Coupler [Sentry] Relay Coupler [Sentry] Relay Coupler [Hunter] > --- WEAPON ----------- Enhanced Nova Cannon Enhanced Nova Cannon Advanced Remote Datajack > --- INVENTORY -------- Reinforced Antimatter Reactor Particle Reactor Light Quantum Reactor Medium Treads Medium Treads Medium Treads Medium Treads Armored Wheel Advanced Phase Shifter Authchip [Armor] Relay Coupler [NC] Relay Coupler [Duelist] Relay Coupler [Hunter] Gamma Rifle Plasma Rifle Phase Gun Quantum Rifle Heavy Phase Cannon Long-range Phase Cannon Enhanced Nova Cannon Coil Gun Heavy Machine Gun Improved Remote Datajack Improved Remote Datajack Shock Maul [Rating: 143] Favorites ----------- Power Light Nuclear Core Engine Improved Ion Engine Power Core Light Nuclear Core Reactor Light Quantum Reactor Propulsion Armored Treads Treads Armored Treads Leg Centrium Leg Wheel Armored Wheel Flight Unit Improved Diametric Drive Utility Advanced Targeting Computer Device Advanced Heat Sink Storage Huge Storage Unit Processor Advanced Targeting Computer Hackware Relay Coupler [Sentry] Protection Layered Medium Armor Plating Weapon Gauss Rifle Energy Gun Medium Laser Energy Cannon Heavy Phase Cannon Ballistic Gun Gauss Rifle Ballistic Cannon Hypervelocity Mass Driver Launcher Improved Grenade Launcher Special Weapon Improved Remote Datajack Impact Weapon Power Maul Slashing Weapon Katana Special Melee Weapon Improved Datajack Build | -11 -10 -10 -9 -9 -9 -8 -8 -8 -8 -8 -7 -7 -7 -6 -6 -5 -5 -5 -5 -4 -4 -3 -3 -2 -2 -1 ------- Run | Scr Mat Min Mat Min Exi Min Mat Gar Mat Gar Fac Gar Fac Fac Gar Fac Gar Fac Gar Fac Gar Res Gar Res Gar Acc Slots Evolved 18 | . . . 2 . . . 2 . . . 2 . . 2 . 2 . . . 2 . 2 . 2 . 2 Power 1 | . . . . . . . . . . . . . . . . . . . . . . 1 . . . . Propulsion 4 | . . . . . . . 1 . . . 1 . . . . . . . . . . . . . . 2 Utility 12 | . . . 2 . . . 1 . . . 1 . . 2 . 1 . . . 2 . 1 . 2 . . Weapon 1 | . . . . . . . . . . . . . . . . 1 . . . . . . . . . . Parts Attached 594 | 7 10 6 40 3 5 1 31 12 15 11 37 27 35 44 9 3 22 39 33 19 46 37 43 43 . 16 Power 41 | 1 1 . 1 . . 1 1 1 2 2 4 2 2 2 . . 1 2 2 1 4 4 4 2 . 1 Engine 5 | 1 1 . 1 . . . . . . 1 . . . 1 . . . . . . . . . . . . Core 24 | . . . . . . 1 1 1 2 1 4 2 2 1 . . 1 2 2 1 3 . . . . . Reactor 12 | . . . . . . . . . . . . . . . . . . . . . 1 4 4 2 . 1 Propulsion 98 | 2 . . 11 . . . 11 4 6 1 7 3 4 6 . 1 . 2 4 2 6 9 6 8 . 5 Treads 88 | 2 . . 11 . . . 11 4 5 1 7 3 4 6 . 1 . 2 4 2 6 6 4 8 . 1 Leg 5 | . . . . . . . . . 1 . . . . . . . . . . . . 1 . . . 3 Wheel 4 | . . . . . . . . . . . . . . . . . . . . . . 2 2 . . . Hover . | . . . . . . . . . . . . . . . . . . . . . . . . . . . Flight 1 | . . . . . . . . . . . . . . . . . . . . . . . . . . 1 Utility 203 | 2 6 4 17 1 . . 12 1 1 3 13 7 13 11 3 1 9 17 14 6 17 7 17 13 . 8 Device 64 | 1 4 3 5 . . . . . . 1 1 . 7 3 1 . 1 7 4 . 4 3 8 8 . 3 Storage 8 | 1 2 . 1 . . . 1 . 1 . 1 . . . . . . . . . . . . . . 1 Processor 14 | . . . 1 . . . 2 . . . 1 . . . . 1 . 1 1 2 2 1 . 1 . 1 Hackware 43 | . . . . . . . 1 1 . . 2 4 3 1 2 . 5 2 3 3 4 1 6 3 . 2 Protection 74 | . . 1 10 1 . . 8 . . 2 8 3 3 7 . . 3 7 6 1 7 2 3 1 . 1 Artifact . | . . . . . . . . . . . . . . . . . . . . . . . . . . . Weapon 252 | 2 3 2 11 2 5 . 7 6 6 5 13 15 16 25 6 1 12 18 13 10 19 17 16 20 . 2 Energy Gun 61 | 2 2 1 3 . . . . . . . . 2 4 16 4 1 6 8 2 2 4 3 1 . . . Energy Cannon 28 | . . . . . 1 . . . . 1 1 1 1 1 . . . 1 4 . 8 2 4 1 . 2 Ballistic Gun 57 | . 1 . 5 2 2 . 4 4 3 3 6 6 5 1 . . . 2 . . . 1 3 9 . . Ballistic Cannon 9 | . . . . . . . . . . . . . . . . . . . 1 2 1 4 1 . . . Launcher 13 | . . . . . . . 1 2 . 1 . 1 2 2 . . 1 . 1 . . 1 1 . . . Special Weapon 63 | . . 1 1 . 1 . 1 . . . 3 4 2 3 2 . 4 4 4 5 6 6 6 10 . . Impact Weapon 13 | . . . . . . . . . . . 2 1 2 2 . . 1 3 1 1 . . . . . . Slashing Weapon 2 | . . . 1 . . . 1 . . . . . . . . . . . . . . . . . . . Piercing Weapon . | . . . . . . . . . . . . . . . . . . . . . . . . . . . Special Melee Weapon 6 | . . . 1 . 1 . . . 3 . 1 . . . . . . . . . . . . . . . Unidentified Prototypes 10 | . . 1 . . 2 . . . . . . . . 3 . . . 1 . . . 1 . . . 2 Corrupted Parts 1 | . . . . . . . . . . . . . . . . . . . . . 1 . . . . . System Corruption 1 | . . . . . . . . . . . . . . . . . . . . . 1 . . . . . Parts Lost 117 | . . . 6 1 . . 5 1 3 3 4 5 8 2 . . . 9 6 10 7 14 14 19 . . Power 13 | . . . . . . . 1 . 1 1 1 . 2 . . . . . . 1 1 2 2 1 . . Propulsion 34 | . . . . . . . 1 1 . 1 1 3 2 . . . . 3 2 2 3 5 2 8 . . Utility 52 | . . . 4 1 . . 3 . 2 1 . 1 2 1 . . . 3 4 5 3 5 8 9 . . Weapon 18 | . . . 2 . . . . . . . 2 1 2 1 . . . 3 . 2 . 2 2 1 . . Highest Loss Streak 11 | . . . 2 1 . . 2 1 3 3 4 4 3 1 . . . 3 2 4 3 10 7 11 . . To Critical Strikes . | . . . . . . . . . . . . . . . . . . . . . . . . . . . Average Slot Usage (%) 96 | . 100 100 97 99 99 100 93 99 99 98 99 96 95 98 100 95 100 94 97 96 97 94 94 90 13 37 Engine 2 | . 14 14 11 11 11 7 . . . 4 . . . 1 . . . . . . . . . . . . Core 4 | . . . . . . 3 7 9 9 4 6 6 6 4 6 5 5 5 5 4 5 4 . . . . Treads 23 | . 28 28 22 22 22 22 25 26 26 26 29 27 28 25 26 22 23 18 20 20 20 12 15 16 . 3 Device 7 | . 14 13 17 . . . . . . 8 3 . 6 9 6 5 5 6 16 14 5 8 5 22 4 4 Storage 7 | . 14 14 10 11 11 11 9 9 9 9 7 7 7 6 6 5 5 5 5 5 5 4 4 3 . 2 Processor 6 | . . . . . . . 1 18 17 9 9 7 7 6 6 8 5 5 5 12 14 13 8 . . . Hackware 11 | . . . . . . . 8 9 18 4 9 23 8 8 19 17 24 22 10 10 22 19 27 20 8 8 Protection 11 | . . . 13 32 33 33 23 8 . 12 13 5 12 19 13 11 9 8 11 9 6 6 3 3 . 1 Energy Gun 6 | . 27 26 13 . . . . . . . . . 5 11 12 15 15 13 10 8 4 5 1 . . . Energy Cannon 1 | . . . . . . . . . . 4 . . 3 1 . . . . 3 . 7 3 1 7 . 5 Ballistic Gun 7 | . . . 8 22 13 22 17 17 16 12 14 8 4 . . . . 2 . . . . 5 2 . . Naked Turns . | . . . . . . . . . . . . . . . . . . . . . . . . . . . Heaviest Build 171 | 15 32 45 50 50 44 44 44 38 93 114 114 104 125 143 135 117 131 131 141 136 157 170 162 171 1 68 Greatest Support 121 | 40 40 40 43 40 40 40 63 63 60 60 82 106 106 104 96 96 96 118 121 103 111 107 112 112 3 85 Greatest Overweight (x) 15 | 1 . 1 1 1 1 1 1 . 1 1 1 1 1 1 1 1 1 1 1 1 1 15 10 1 . . Average Overweight (x) . | . . . . 1 . 1 . . . 1 1 . . 1 1 1 1 . 1 1 1 3 1 . . . Largest Inventory Capacity 25 | 8 15 15 15 15 15 15 15 15 25 25 25 25 25 25 25 25 25 25 25 25 25 25 25 25 5 15 Average Capacity 21 | 7 13 15 14 15 15 15 15 15 21 25 25 25 25 25 25 25 25 25 25 25 25 25 25 24 5 11 Most Carried 25 | 5 14 15 15 15 15 15 15 15 25 25 25 25 25 25 25 25 25 25 25 25 25 25 25 25 5 11 Average Carried 20 | 4 9 14 14 15 14 15 14 14 19 23 24 24 24 24 24 23 23 24 24 23 24 22 23 23 5 5 Final Capacity 25 | 8 15 15 15 15 15 15 15 15 25 25 25 25 25 25 25 25 25 25 25 25 25 25 25 5 5 15 Final Carried 25 | 5 13 15 15 15 15 15 15 15 25 25 25 25 25 25 25 24 24 24 25 23 25 25 24 5 5 9 Class Distribution -------------------- 35% | Bothacker-Mutant 20% | Mutant 13% | Scavenger-Mutant 7% | Botlord-Mutant 6% | Botlord-Tank 5% | Bothacker-Tank 5% | Botlord-Gunner Dominant Class ---------------- Mutant | -10/Materials Mutant | -10/Mines Scavenger-Mutant | -9/Materials Mutant | -9/Mines Mutant | -9/Exiles Mutant | -8/Mines Scavenger-Mutant | -8/Materials Scavenger-Mutant | -8/Garrison Bothacker-Mutant | -8/Materials Bothacker-Mutant | -8/Garrison Bothacker-Mutant | -7/Factory Bothacker-Mutant | -7/Garrison Bothacker-Mutant | -7/Factory Bothacker-Mutant | -6/Factory Bothacker-Mutant | -6/Garrison Bothacker-Tank | -5/Factory Botlord-Tank | -5/Garrison Botlord-Tank | -5/Factory Bothacker-Tank | -5/Garrison Botlord-Tank | -4/Factory Botlord-Gunner | -4/Garrison Botlord-Gunner | -3/Research Botlord-Mutant | -3/Garrison Botlord-Tank | -2/Research Mutant | -2/Garrison Mutant | -1/Access Resources | -11 -10 -10 -9 -9 -9 -8 -8 -8 -8 -8 -7 -7 -7 -6 -6 -5 -5 -5 -5 -4 -4 -3 -3 -2 -2 -1 ----------- Run | Scr Mat Min Mat Min Exi Min Mat Gar Mat Gar Fac Gar Fac Fac Gar Fac Gar Fac Gar Fac Gar Res Gar Res Gar Acc Matter Collected 12612 | 270 118 60 455 190 . 72 807 643 484 202 1778 725 725 489 125 . 361 545 512 376 901 787 1063 749 . 175 Remotely 487 | . . . . . . . . . . . . . . . . . . . . . . . . 487 . . Salvage Created 21367 | 127 479 71 1233 472 . 52 1414 603 861 402 2275 649 923 2378 242 . 415 1622 1215 396 974 1742 552 2069 . 201 Parts 965 | 10 40 1 77 34 . 2 77 35 54 25 111 38 44 83 11 . 15 47 27 21 38 63 23 85 . 4 Haulers Intercepted 25 | . 2 . 4 . . . 4 . 5 . 1 . . 2 . . . 2 . . . 3 . 1 . 1 Recyclers Shooed 18 | . 4 . 3 . . . 3 . . . 1 . 1 4 . . . . . 1 . 1 . . . . Parts Field Recycled . | . . . . . . . . . . . . . . . . . . . . . . . . . . . Retrieved Matter . | . . . . . . . . . . . . . . . . . . . . . . . . . . . Parts Self-Destructed . | . . . . . . . . . . . . . . . . . . . . . . . . . . . Prevented . | . . . . . . . . . . . . . . . . . . . . . . . . . . . Kills | -11 -10 -10 -9 -9 -9 -8 -8 -8 -8 -8 -7 -7 -7 -6 -6 -5 -5 -5 -5 -4 -4 -3 -3 -2 -2 -1 ------- Run | Scr Mat Min Mat Min Exi Min Mat Gar Mat Gar Fac Gar Fac Fac Gar Fac Gar Fac Gar Fac Gar Res Gar Res Gar Acc Combat Hostiles Destroyed 318 | . 10 . 20 12 . 1 20 18 7 11 35 20 13 26 6 . 9 19 20 4 17 16 9 24 . 1 Guns 191 | . 10 . 19 12 . 1 20 15 7 5 32 5 6 13 6 . 5 14 6 1 5 6 2 1 . . Cannons 73 | . . . . . . . . . . 3 1 7 4 1 . . . . 9 3 12 7 7 19 . . AOE 26 | . . . . . . . . 3 . 3 2 8 3 2 . . 2 . 1 . . 2 . . . . Classes Destroyed 20 | 2 5 . 3 1 . . 3 . 1 . 2 . 1 . . . 1 . . . . 1 . . . . Worker 11 | . . . 3 . . . 1 . 1 . 1 . 1 2 . . . . . . . . . 2 . . Builder 8 | . . . . . . . . . 2 . 1 . . 4 . . . . . . . 1 . . . . Tunneler 4 | 2 1 . 1 . . . . . . . . . . . . . . . . . . . . . . . Hauler 26 | . 2 . 4 . . . 4 . 5 . 1 . 1 2 . . . 2 . . . 3 . 1 . 1 Recycler 33 | 1 1 1 3 2 . . 3 . 2 . 7 . 2 4 . . . 3 . 1 . 2 . 1 . . Carrier 1 | . . . . . . . . . . . . . . . . . . . . . . 1 . . . . Mechanic 1 | . . . . . . . . . . . . . 1 . . . . . . . . . . . . . Operator 5 | . 1 . 1 . . . . . . . . . 2 1 . . . . . . . . . . . . Watcher 18 | . 2 . 4 . . . 1 . 1 . 3 . 1 1 . . . . . 2 . 1 1 1 . . Swarmer 77 | . 6 . 6 7 . . . 9 . 3 10 10 . . 3 . 2 1 . . 4 6 5 5 . . Cutter 2 | . . . . . . . 2 . . . . . . . . . . . . . . . . . . . Grunt 142 | . 4 . 7 3 . 1 9 7 2 5 12 9 8 16 4 . 6 10 13 2 8 1 3 11 . 1 Brawler 18 | . . . . 1 . . . . . . 2 . 1 5 . . . 3 2 . 1 1 2 . . . Duelist 5 | . . . 1 1 . . 1 . . . . 1 . 1 . . . . . . . . . . . . Protector 2 | . . . . . . . . . . . 1 . . 1 . . . . . . . . . . . . Sentry 32 | . . . 6 . . . 5 2 4 3 1 . . . . . . 3 5 . 1 1 . 1 . . Hunter 16 | . . . . . . . 2 . 1 . 1 . 1 1 . . . 1 . . 2 5 . 2 . . Programmer 29 | . . . . . . . . . . . 8 . 3 2 . . . 2 . 2 1 5 . 6 . . Heavy 1 | . . . . . . . 1 . . . . . . . . . . . . . . . . . . . Behemoth 1 | . . . . . . . . . . . . . . . . . 1 . . . . . . . . . Thug 1 | . . . 1 . . . . . . . . . . . . . . . . . . . . . . . Best Kill Streak 11 | 2 4 1 4 4 . 1 6 4 3 10 8 11 7 5 2 . 4 6 4 2 6 7 3 5 . 2 Combat Bots Only 11 | . 3 . 4 4 . 1 5 4 2 10 7 11 5 5 2 . 4 6 4 2 6 7 3 4 . 1 Max Kills in Single Turn 4 | 1 1 1 2 2 . 1 2 2 2 2 2 2 3 4 2 . 2 1 1 1 1 2 1 2 . 1 Gunslinging 1 | . . . 1 1 . . . 1 . 1 . . . . . . . . . . . . . . . . Exploded 2 | . . . . . . . . 2 . 2 1 2 2 1 . . 2 . 1 . . 1 . . . . Melee . | . . . . . . . . . . . . . . . . . . . . . . . . . . . Uniques/NPCs Destroyed . | . . . . . . . . . . . . . . . . . . . . . . . . . . . Combat | -11 -10 -10 -9 -9 -9 -8 -8 -8 -8 -8 -7 -7 -7 -6 -6 -5 -5 -5 -5 -4 -4 -3 -3 -2 -2 -1 -------- Run | Scr Mat Min Mat Min Exi Min Mat Gar Mat Gar Fac Gar Fac Fac Gar Fac Gar Fac Gar Fac Gar Res Gar Res Gar Acc Damage Taken 31680 | . 328 . 1466 564 . . 1664 807 735 757 2363 1139 1215 1949 402 . 542 2438 949 1395 2305 3607 2072 4663 54 266 Core 3816 | . 37 . 177 10 . . 171 42 189 86 270 102 86 96 44 . 20 143 . 192 159 375 171 1365 54 27 Absorbed by Shields 684 | . . . . . . . . . . . . . . . . . . . 32 . . . . 652 . . Reduced by Siege Mode 20 | . . . . . . . . . . . . . . . . . . 10 10 . . . . . . . Redirected to Shielding 9 | . . . . . . . 9 . . . . . . . . . . . . . . . . . . . Regen/Repaired (Parts) 3144 | . . . 195 . . . 436 . 283 . 151 . 247 425 577 150 441 . . . . . . 239 . . Core Remaining (%) 61 | 100 . 85 . . . 53 . . . 11 . . 34 . 83 . . . 83 . 69 . 58 . 2 98 Volleys Fired 1347 | 5 53 12 114 22 . 2 106 67 42 26 137 59 69 96 21 . 30 66 70 34 69 73 79 87 . 8 Largest 3 | 2 2 2 2 2 . 2 2 2 2 2 2 2 2 2 2 . 3 3 3 3 3 3 3 3 . 2 Hottest 278 | 100 100 100 106 46 . 46 46 56 56 91 91 99 115 160 165 . 245 245 228 204 249 278 270 270 . 225 Shots Fired 2677 | 10 106 18 224 44 . 4 209 108 79 45 258 88 119 173 34 . 67 177 184 72 156 175 124 187 . 16 Gun 1996 | 10 106 12 221 44 . 4 207 104 79 29 245 49 89 161 29 . 55 167 113 44 51 84 54 39 . . Cannon 495 | . . . . . . . . . . 14 6 26 13 8 . . . 2 61 20 91 76 38 124 . 16 Launcher 23 | . . . . . . . 1 4 . 2 . 4 2 1 . . 2 . 4 . . 3 . . . . Special 163 | . . 6 3 . . . 1 . . . 7 9 15 3 5 . 10 8 6 8 14 12 32 24 . . Kinetic 1081 | . 6 . 36 44 . 4 207 104 79 29 245 46 58 . . . . 39 9 20 24 37 55 39 . . Thermal 1236 | 10 100 18 188 . . . . . . . . 3 38 40 29 . 55 130 165 44 118 123 35 124 . 16 Explosive 23 | . . . . . . . 1 4 . 2 . 4 2 1 . . 2 . 4 . . 3 . . . . Electromagnetic 183 | . . . . . . . . . . 14 6 26 6 129 . . . . . . . . 2 . . . Robot Hit Streak 31 | 4 6 6 15 14 . 3 31 26 22 15 16 18 19 17 16 . 23 20 20 13 23 14 16 16 . 3 Robot Miss Streak 5 | 1 4 3 4 1 . 1 5 2 3 4 3 3 2 2 2 . 4 3 5 3 2 4 3 4 . 3 Penetration Max 1 | . . . . . . . . 1 1 1 1 . 1 . . . . . . . 1 . 1 . . . Secondary Targets 27 | . 1 . 4 3 . . 3 5 . 1 1 . . 3 . . 1 5 . . . . . . . . Max Gunslinging Chain 1 | . 1 . 1 1 . . 1 1 . 1 1 . . 1 . . 1 1 . . . . . . . . Shots Hit Robots 1854 | 7 60 8 154 37 1 3 152 91 67 29 171 52 89 143 28 . 38 151 103 56 102 117 82 109 . 4 Core Hits 855 | 4 26 2 64 19 . 1 64 38 26 15 86 29 48 71 21 . 30 89 49 14 40 53 26 38 . 2 Critical Kills 33 | . . . . . . . . 1 2 . 3 . . . . . . . 3 4 2 8 5 4 . 1 Critical Parts Destroyed 27 | . . . . . . . . 2 3 . 1 . 2 . . . . 1 1 6 3 6 2 . . . Critical Strikes 103 | . 5 . 10 . . . . 3 5 . 5 . 5 2 . . 2 12 6 11 7 16 9 4 . 1 Burn 37 | . 5 . 10 . . . . . . . . . 3 . . . 2 11 2 1 2 1 . . . . Meltdown 7 | . . . . . . . . . . . . . . . . . . . 2 . . . . 4 . 1 Destroy 56 | . . . . . . . . 3 5 . 4 . 2 . . . . 1 2 10 5 15 9 . . . Corrupt 3 | . . . . . . . . . . . 1 . . 2 . . . . . . . . . . . . Melee Attacks 40 | . . . 3 . 1 . 1 . 7 . 4 5 2 6 . . 1 2 7 1 . . . . . . Impact 26 | . . . . . . . . . . . 2 5 2 6 . . 1 2 7 1 . . . . . . Slashing 2 | . . . 1 . . . 1 . . . . . . . . . . . . . . . . . . . Piercing . | . . . . . . . . . . . . . . . . . . . . . . . . . . . Sneak Attacks 5 | . . . 2 . . . . . 1 . 2 . . . . . . . . . . . . . . . Combat Hostiles . | . . . . . . . . . . . . . . . . . . . . . . . . . . . Follow-up Attacks . | . . . . . . . . . . . . . . . . . . . . . . . . . . . Damage Inflicted 43240 | 89 770 102 2644 531 . 47 2425 1886 1245 977 3876 1672 2061 4272 499 . 1191 3375 2764 870 2413 3375 1721 4279 . 156 Guns 27358 | 89 770 102 2051 531 . 47 2376 1470 1239 527 3668 387 1381 3316 499 . 681 2910 1192 595 688 1625 885 329 . . Cannons 10795 | . . . . . . . . . . 183 55 481 267 218 . . . . 1202 275 1725 1448 836 3950 . 155 Explosions 5065 | . . . 593 . . . 49 416 . 267 153 804 413 729 . . 510 465 370 . . 296 . . . . Melee . | . . . . . . . . . . . . . . . . . . . . . . . . . . . Ramming 22 | . . . . . . . . . 6 . . . . 9 . . . . . . . 6 . . . 1 Kinetic 14292 | . 10 . 399 531 . 47 2376 1470 1239 527 3668 371 952 . . . . 488 57 275 308 399 846 329 . . Thermal 21527 | 89 760 102 1652 . . . . . . 74 78 169 671 1274 499 . 681 2887 2337 595 2105 2674 775 3950 . 155 Explosive 3792 | . . . 593 . . . 49 416 . 193 75 651 341 298 . . 510 . 370 . . 296 . . . . Electromagnetic 3607 | . . . . . . . . . . 183 55 481 97 2691 . . . . . . . . 100 . . . Impact . | . . . . . . . . . . . . . . . . . . . . . . . . . . . Slashing . | . . . . . . . . . . . . . . . . . . . . . . . . . . . Piercing . | . . . . . . . . . . . . . . . . . . . . . . . . . . . Highest Corruption 43 | . . . . . . . . . 10 10 9 9 12 2 2 . . 1 1 5 6 25 43 21 21 . Average Corruption 6 | . . . . . . . . . 5 10 4 9 7 1 2 . . 1 1 4 5 13 25 7 21 . Corruption Purged 11 | . . . . . . . . . . . . . 11 . . . . . . . . . . . . . Corruption Blocked . | . . . . . . . . . . . . . . . . . . . . . . . . . . . Effects 401 | . . . . . . . . . 1 21 91 44 46 13 11 . . 4 14 8 50 18 55 22 3 . Message Errors 94 | . . . . . . . . . . 4 27 10 10 6 2 . . 2 3 2 10 4 9 4 1 . Matter Fused 96 | . . . . . . . . . 1 3 24 8 12 1 4 . . 1 2 . 11 4 16 7 2 . Heat Flow Errors 43 | . . . . . . . . . . 2 9 8 4 . . . . . 2 3 7 2 5 1 . . Energy Discharges 52 | . . . . . . . . . . 3 10 11 4 4 1 . . 1 . 1 8 2 5 2 . . Parts Rejected 5 | . . . . . . . . . . . . . . . . . . . . . 2 . 2 1 . . Data Loss (minor) 44 | . . . . . . . . . . 3 13 2 8 1 . . . . 5 . 6 1 4 1 . . Data Loss (major) 21 | . . . . . . . . . . 2 1 1 4 1 4 . . . 2 . 1 2 2 1 . . Misfires 15 | . . . . . . . . . . 1 3 2 2 . . . . . . 1 1 . 3 2 . . Alerts 10 | . . . . . . . . . . 2 2 1 1 . . . . . . . 1 . 2 1 . . Misdirections 1 | . . . . . . . . . . . . . 1 . . . . . . . . . . . . . Weapon Failures 20 | . . . . . . . . . . 1 2 1 . . . . . . . 1 3 3 7 2 . . Overload Shots . | . . . . . . . . . . . . . . . . . . . . . . . . . . . Overflow Damage 468 | . . . 8 . . . . . . 4 15 21 . 28 . . 19 78 28 3 2 20 . 242 . . Projectiles 299 | . . . . . . . . . . 4 . . . . . . . . 28 3 2 20 . 242 . . Explosions 169 | . . . 8 . . . . . . . 15 21 . 28 . . 19 78 . . . . . . . . Melee . | . . . . . . . . . . . . . . . . . . . . . . . . . . . Knockbacks 14 | . . . . . . . . . . . . . . 1 . . . . 2 5 4 1 1 . . . Impact 1 | . . . . . . . . . . . . . . 1 . . . . . . . . . . . . Kinetic 13 | . . . . . . . . . . . . . . . . . . . 2 5 4 1 1 . . . Secondary . | . . . . . . . . . . . . . . . . . . . . . . . . . . . Self-Inflicted Damage 417 | . . . 114 . . . . . . . 100 7 107 . . . . 89 . . . . . . . . Shots 7 | . . . 1 . . . . . . . 2 1 2 . . . . 1 . . . . . . . . Rammed 5 | . . . . . . . . . 2 . . . . 1 . . . . . . . 1 . . . 1 Targets Rammed 5 | . . . . . . . . . 2 . . . . 1 . . . . . . . 1 . . . 1 Kicked . | . . . . . . . . . . . . . . . . . . . . . . . . . . . Crushed . | . . . . . . . . . . . . . . . . . . . . . . . . . . . Highest Temperature 677 | 72 246 126 165 216 . 18 149 33 8 220 274 336 315 323 133 . 355 355 155 240 376 677 399 199 . 185 Average Temperature 83 | 30 75 45 36 72 . 10 31 12 3 85 58 100 74 100 51 . 115 100 22 95 121 148 118 91 . 93 Received Heat Transfer 6023 | . 135 . 399 120 . . 513 288 270 297 285 243 435 639 123 . 171 751 345 130 334 39 235 262 . 9 Effects 21 | . 4 . . . . . . . . . 1 1 . . . . . . . . 5 10 . . . . Shutdowns 2 | . . . . . . . . . . . . . . . . . . . . . . 2 . . . . Energy Bleed 3 | . . . . . . . . . . . 1 1 . . . . . . . . 1 . . . . . Interference 13 | . 4 . . . . . . . . . . . . . . . . . . . 4 5 . . . . Short Circuit 2 | . . . . . . . . . . . . . . . . . . . . . . 2 . . . . Damage (core) 1 | . . . . . . . . . . . . . . . . . . . . . . 1 . . . . Siege Activations 2 | . . . . . . . . . . . . . . . . . . 1 1 . . . . . . . Total Turns 68 | . . . . . . . . . . . . . . . . . . 30 38 . . . . . . . Longest Duration 38 | . . . . . . . . . . . . . . . . . . 30 38 . . . . . . . Robots Corrupted 13 | . . . . . . . . . . . . . . 12 . . . . . . . . 1 . . . Combat Hostiles 10 | . . . . . . . . . . . . . . 10 . . . . . . . . . . . . Parts Fried 16 | . . . . . . . . . . 1 . 1 . 12 . . . . . . . . 2 . . . Impact Corruptions . | . . . . . . . . . . . . . . . . . . . . . . . . . . . Robots Melted 18 | . . . 1 . . . . . . . . . . . . . 2 5 4 . . 1 . 4 . 1 Combat Hostiles 18 | . . . 1 . . . . . . . . . . . . . 2 5 4 . . 1 . 4 . 1 Parts Melted 94 | 3 6 . 12 . . . . . . . . . 4 5 4 . 3 16 13 1 4 10 . 13 . . Heat Transferred 37425 | 259 2627 296 5476 . . . . . . 100 100 137 1327 2121 1060 . 1800 6858 3662 1147 2870 3404 777 3256 . 148 Parts Sabotaged 4 | . . . . . . . . . . . . . . 4 . . . . . . . . . . . . Parts Stolen . | . . . . . . . . . . . . . . . . . . . . . . . . . . . Parts Stripped . | . . . . . . . . . . . . . . . . . . . . . . . . . . . Power Chain Reactions 6 | . . . . . . . . . . 1 1 2 . 2 . . . . . . . . . . . . Missiles Intercepted . | . . . . . . . . . . . . . . . . . . . . . . . . . . . Alert | -11 -10 -10 -9 -9 -9 -8 -8 -8 -8 -8 -7 -7 -7 -6 -6 -5 -5 -5 -5 -4 -4 -3 -3 -2 -2 -1 ------- Run | Scr Mat Min Mat Min Exi Min Mat Gar Mat Gar Fac Gar Fac Fac Gar Fac Gar Fac Gar Fac Gar Res Gar Res Gar Acc Peak Influence 1489 | 15 177 60 691 420 . 147 394 1011 787 654 763 1442 956 1489 1311 692 624 543 960 556 601 556 410 514 344 230 Initial 998 | . 9 60 3 250 . . 57 256 492 272 343 534 756 427 998 688 351 327 261 504 165 337 330 196 314 206 Average 461 | 9 83 18 410 339 . 79 183 734 575 488 216 1023 843 1033 1171 662 508 381 687 452 422 411 286 291 323 153 Maximum Alert Level 4 | . . . 2 2 . . 1 3 3 2 3 4 3 4 4 2 2 2 3 2 2 2 2 2 1 1 Low Security (%) 24 | 100 100 100 7 . . 100 56 . . . 54 . . . . . . 2 . . 4 . 29 20 . 39 Level 1 27 | . . . 42 77 . . 43 2 . 35 36 . . . . . 26 63 10 29 38 35 53 69 100 60 Level 2 26 | . . . 50 22 . . . 25 89 64 7 20 11 18 . 100 73 34 35 70 57 64 17 9 . . Level 3 16 | . . . . . . . . 71 10 . 1 43 88 42 29 . . . 53 . . . . . . . Level 4 5 | . . . . . . . . . . . . 36 . 38 70 . . . . . . . . . . . Level 5 . | . . . . . . . . . . . . . . . . . . . . . . . . . . . High Security . | . . . . . . . . . . . . . . . . . . . . . . . . . . . Max Security . | . . . . . . . . . . . . . . . . . . . . . . . . . . . Squads Dispatched 64 | . 1 . 1 . . . 3 . 4 . 14 . 8 9 . 1 . 6 . 4 . 4 . 8 . 1 Investigation 3 | . . . . . . . . . . . 1 . 1 1 . . . . . . . . . . . . Extermination 15 | . . . . . . . . . . . 6 . 2 1 . . . 1 . 1 . 1 . 2 . 1 Reinforcement 24 | . 1 . 1 . . . 3 . 2 . 3 . 3 4 . . . 2 . 1 . 1 . 3 . . Assault 11 | . . . . . . . . . 1 . 1 . 2 3 . 1 . 1 . . . 1 . 1 . . Garrison 11 | . . . . . . . . . 1 . 3 . . . . . . 2 . 2 . 1 . 2 . . Intercept . | . . . . . . . . . . . . . . . . . . . . . . . . . . . Searches Triggered . | . . . . . . . . . . . . . . . . . . . . . . . . . . . Construction Impeded 4 | . . . . . . . . . 1 . . . . 1 . . . . . . . . . 2 . . Haulers Reinforced 5 | . . . . . . . . . . . . . 1 2 . . . 1 . . . 1 . . . . Active Scanning Responses . | . . . . . . . . . . . . . . . . . . . . . . . . . . . Cargo Convoy Interrupts 1 | . . . . . . . . . . . . . . . . . . . . . . . . 1 . . Alert ID Control Effect 61 | . . . . . . . . . . . . . . . . . 8 2 5 9 9 9 8 11 . . Stealth | -11 -10 -10 -9 -9 -9 -8 -8 -8 -8 -8 -7 -7 -7 -6 -6 -5 -5 -5 -5 -4 -4 -3 -3 -2 -2 -1 --------- Run | Scr Mat Min Mat Min Exi Min Mat Gar Mat Gar Fac Gar Fac Fac Gar Fac Gar Fac Gar Fac Gar Res Gar Res Gar Acc Distress Signals 17 | . 1 . 1 . . . 2 . 1 . . . . . . . . . . 5 . 3 . 4 . . Communications Jammed 2 | . . . . . . . . . . . 2 . . . . . . . . . . . . . . . Distress Signals 2 | . . . . . . . . . . . 2 . . . . . . . . . . . . . . . Times Spotted 638 | . 22 . 42 12 . 5 33 21 22 12 47 37 35 39 14 6 25 32 28 29 30 36 38 67 3 3 Peak Tracking Total 21 | . 5 . 8 4 . 3 5 4 7 8 7 9 6 6 4 5 12 8 4 8 6 8 9 21 3 2 Tactical Retreats 28 | . 1 . 3 . . 1 2 4 . 1 . 4 . 3 . . 1 3 . 1 . . . 2 . 2 Traps | -11 -10 -10 -9 -9 -9 -8 -8 -8 -8 -8 -7 -7 -7 -6 -6 -5 -5 -5 -5 -4 -4 -3 -3 -2 -2 -1 ------- Run | Scr Mat Min Mat Min Exi Min Mat Gar Mat Gar Fac Gar Fac Fac Gar Fac Gar Fac Gar Fac Gar Res Gar Res Gar Acc Traps Triggered 34 | . . . . . . . . . . . 1 5 . . 4 . 5 . 6 . 6 2 4 . . 1 Indirectly . | . . . . . . . . . . . . . . . . . . . . . . . . . . . Trap Hack Attempts . | . . . . . . . . . . . . . . . . . . . . . . . . . . . Triggered . | . . . . . . . . . . . . . . . . . . . . . . . . . . . Disarmed . | . . . . . . . . . . . . . . . . . . . . . . . . . . . Reprogrammed . | . . . . . . . . . . . . . . . . . . . . . . . . . . . Reused . | . . . . . . . . . . . . . . . . . . . . . . . . . . . Traps Extracted . | . . . . . . . . . . . . . . . . . . . . . . . . . . . Installed . | . . . . . . . . . . . . . . . . . . . . . . . . . . . Triggered . | . . . . . . . . . . . . . . . . . . . . . . . . . . . Exploded 1 | . . . . . 1 . . . . . . . . . . . . . . . . . . . . . Machines | -11 -10 -10 -9 -9 -9 -8 -8 -8 -8 -8 -7 -7 -7 -6 -6 -5 -5 -5 -5 -4 -4 -3 -3 -2 -2 -1 ---------- Run | Scr Mat Min Mat Min Exi Min Mat Gar Mat Gar Fac Gar Fac Fac Gar Fac Gar Fac Gar Fac Gar Res Gar Res Gar Acc Machines Disabled 95 | . . . 7 . . . . 3 3 4 5 7 6 38 1 . 2 1 4 3 3 1 3 4 . . Max in Single Turn 15 | . . . 2 . . . . 1 1 2 3 2 3 15 1 . 1 1 1 1 1 1 2 1 . . Garrison Access 2 | . . . . . . . . . . . . . . 1 . . . . . . . . . 1 . . Garrison Relay 18 | . . . . . . . . 3 . 1 . 4 . . 1 . 2 . 3 . 3 . 1 . . . Phase Generator 3 | . . . . . . . . . . 1 . 1 . . . . . . . . . . 1 . . . Machines Sabotaged . | . . . . . . . . . . . . . . . . . . . . . . . . . . . Garrisons Compromised . | . . . . . . . . . . . . . . . . . . . . . . . . . . . Overloaded Fab Kills . | . . . . . . . . . . . . . . . . . . . . . . . . . . . Hacking | -11 -10 -10 -9 -9 -9 -8 -8 -8 -8 -8 -7 -7 -7 -6 -6 -5 -5 -5 -5 -4 -4 -3 -3 -2 -2 -1 --------- Run | Scr Mat Min Mat Min Exi Min Mat Gar Mat Gar Fac Gar Fac Fac Gar Fac Gar Fac Gar Fac Gar Res Gar Res Gar Acc Machines Accessed 80 | . 7 1 12 . 3 . 8 . 5 . 15 . 7 7 . 3 . 3 . 2 . 2 . 4 . 1 Terminals 37 | . 6 . 8 . . . 3 . 1 . 9 . 3 2 . 1 . 1 . 1 . . . 1 . 1 Fabricators 3 | . . . . . . . . . . . 1 . . 1 . . . 1 . . . . . . . . Repair Stations 15 | . 1 . 2 . . . 2 . 1 . 2 . 3 1 . 1 . . . . . 1 . 1 . . Recycling Units 6 | . . . 2 . . . 1 . 1 . 1 . . 1 . . . . . . . . . . . . Scanalyzers 4 | . . . . . . . 1 . 1 . 1 . 1 . . . . . . . . . . . . . Garrison Access 11 | . . . . . . . 1 . 1 . 1 . . 2 . 1 . 1 . 1 . 1 . 2 . . Total Hacks 238 | . 17 1 39 . 5 . 53 . 16 . 57 . 14 13 . 5 . 5 . 3 . 3 . 6 . 1 Successful 157 | . 12 1 23 . 5 . 43 . 15 . 29 . 4 7 . 5 . 4 . 2 . 2 . 4 . 1 Failed 80 | . 4 . 16 . . . 10 . 1 . 28 . 10 6 . . . 1 . 1 . 1 . 2 . . Catastrophic 14 | . 1 . 4 . . . 2 . . . 4 . 2 1 . . . . . . . . . . . . Database Lockouts 1 | . 1 . . . . . . . . . . . . . . . . . . . . . . . . . Manual 79 | . 9 . 15 . 2 . 12 . 3 . 21 . 6 4 . 1 . . . 2 . 2 . 2 . . Terminals 107 | . 15 . 26 . . . 12 . 3 . 33 . 6 5 . 1 . 2 . 2 . . . 1 . 1 Fabricators 7 | . . . . . . . . . . . 3 . . 2 . . . 2 . . . . . . . . Repair Stations 51 | . 2 . 8 . . . 17 . 6 . 4 . 7 1 . 2 . . . . . 2 . 2 . . Recycling Units 14 | . . . 5 . . . 2 . 2 . 3 . . 2 . . . . . . . . . . . . Scanalyzers 38 | . . . . . . . 20 . 4 . 13 . 1 . . . . . . . . . . . . . Garrison Access 15 | . . . . . . . 2 . 1 . 1 . . 3 . 2 . 1 . 1 . 1 . 3 . . Terminal Hacks 43 | . 8 1 8 . 5 . 5 . 2 . 8 . . 2 . 1 . 1 . . . . . 1 . 1 Record 6 | . . . 1 . 5 . . . . . . . . . . . . . . . . . . . . . Robot Analysis 4 | . 1 . 1 . . . 1 . . . 1 . . . . . . . . . . . . . . . Prototype ID Bank 4 | . 1 . 3 . . . . . . . . . . . . . . . . . . . . . . . Open Door 2 | . . 1 . . . . . . . . . . . . . . . . . . . . . . . 1 Open DSF 3 | . . . . . . . . . . . 1 . . . . 1 . . . . . . . 1 . . Branch Access Points 2 | . . . 1 . . . 1 . . . . . . . . . . . . . . . . . . . Emergency Access Points 2 | . 1 . . . . . . . 1 . . . . . . . . . . . . . . . . . Terminal Index 4 | . . . 1 . . . . . . . 1 . . 1 . . . 1 . . . . . . . . Repair Station Index 1 | . . . . . . . 1 . . . . . . . . . . . . . . . . . . . Alert Level 1 | . . . . . . . 1 . . . . . . . . . . . . . . . . . . . Locate Traps 4 | . 2 . . . . . . . . . 1 . . 1 . . . . . . . . . . . . Maintenance Status 1 | . . . . . . . . . . . 1 . . . . . . . . . . . . . . . Patrol Status 1 | . . . . . . . . . . . 1 . . . . . . . . . . . . . . . Transport Status 1 | . 1 . . . . . . . . . . . . . . . . . . . . . . . . . Garrison Status 1 | . . . . . . . 1 . . . . . . . . . . . . . . . . . . . Recall Reinforcements 1 | . . . . . . . . . 1 . . . . . . . . . . . . . . . . . Hauler Manifests 3 | . 1 . 1 . . . . . . . 1 . . . . . . . . . . . . . . . Zone Layout 2 | . 1 . . . . . . . . . 1 . . . . . . . . . . . . . . . Fabricator Hacks 5 | . . . . . . . . . . . 1 . . 2 . . . 2 . . . . . . . . Network Status 1 | . . . . . . . . . . . 1 . . . . . . . . . . . . . . . Load Schematic 2 | . . . . . . . . . . . . . . 1 . . . 1 . . . . . . . . Build 2 | . . . . . . . . . . . . . . 1 . . . 1 . . . . . . . . Repair Station Hacks 34 | . 1 . 6 . . . 13 . 6 . 2 . 4 . . 2 . . . . . . . . . . Scan Component 18 | . 1 . 3 . . . 7 . 3 . 1 . 2 . . 1 . . . . . . . . . . Repair 16 | . . . 3 . . . 6 . 3 . 1 . 2 . . 1 . . . . . . . . . . Recycling Unit Hacks 5 | . . . 3 . . . 1 . 1 . . . . . . . . . . . . . . . . . Report Inventory 4 | . . . 2 . . . 1 . 1 . . . . . . . . . . . . . . . . . Retrieve Components 1 | . . . 1 . . . . . . . . . . . . . . . . . . . . . . . Scanalyzer 36 | . . . . . . . 20 . 4 . 12 . . . . . . . . . . . . . . . Insert Component 17 | . . . . . . . 9 . 2 . 6 . . . . . . . . . . . . . . . Analyze 19 | . . . . . . . 11 . 2 . 6 . . . . . . . . . . . . . . . Garrison Access Hacks 14 | . . . . . . . 2 . 1 . 1 . . 3 . 1 . 1 . 1 . 1 . 3 . . Unlock Access 11 | . . . . . . . 1 . 1 . 1 . . 2 . 1 . 1 . 1 . 1 . 2 . . Coupler Status 3 | . . . . . . . 1 . . . . . . 1 . . . . . . . . . 1 . . Unauthorized Hacks 20 | . 3 . 6 . . . 2 . 1 . 5 . . . . 1 . . . 1 . 1 . . . . Terminals 11 | . 3 . 4 . . . . . . . 3 . . . . . . . . 1 . . . . . . Track 4 | . 2 . 2 . . . . . . . . . . . . . . . . . . . . . . . Assimilate 1 | . . . 1 . . . . . . . . . . . . . . . . . . . . . . . Botnet 2 | . . . . . . . . . . . 2 . . . . . . . . . . . . . . . Operators 4 | . 1 . 1 . . . . . . . 1 . . . . . . . . 1 . . . . . . Fabricators . | . . . . . . . . . . . . . . . . . . . . . . . . . . . Repair Stations 3 | . . . 1 . . . 1 . . . . . . . . . . . . . . 1 . . . . Mechanics 3 | . . . 1 . . . 1 . . . . . . . . . . . . . . 1 . . . . Recycling Units 5 | . . . 1 . . . 1 . 1 . 2 . . . . . . . . . . . . . . . Recyclers 4 | . . . 1 . . . 1 . 1 . 1 . . . . . . . . . . . . . . . Mask 1 | . . . . . . . . . . . 1 . . . . . . . . . . . . . . . Scanalyzers . | . . . . . . . . . . . . . . . . . . . . . . . . . . . Garrison Access 1 | . . . . . . . . . . . . . . . . 1 . . . . . . . . . . Restock 1 | . . . . . . . . . . . . . . . . 1 . . . . . . . . . . Data Cores Recovered . | . . . . . . . . . . . . . . . . . . . . . . . . . . . Used . | . . . . . . . . . . . . . . . . . . . . . . . . . . . Hacking Detections 64 | . 7 . 10 . . . 6 . 4 . 13 . 7 6 . 3 . 1 . 2 . 1 . 3 . 1 Full Trace Events 4 | . . . 1 . . . . . . . 1 . 1 1 . . . . . . . . . . . . Feedback Events 1 | . . . . . . . . . . . . . 1 . . . . . . . . . . . . . Corruption 1 | . . . . . . . . . . . . . 1 . . . . . . . . . . . . . Feedback Blocked . | . . . . . . . . . . . . . . . . . . . . . . . . . . . Robot Schematics Acquired . | . . . . . . . . . . . . . . . . . . . . . . . . . . . Robots Built . | . . . . . . . . . . . . . . . . . . . . . . . . . . . Authchips . | . . . . . . . . . . . . . . . . . . . . . . . . . . . Time . | . . . . . . . . . . . . . . . . . . . . . . . . . . . Total Robot Build Rating . | . . . . . . . . . . . . . . . . . . . . . . . . . . . Part Schematics Acquired 17 | . . . . . . . 9 . 2 . 6 . . . . . . . . . . . . . . . Parts Built 3 | . . . . . . . . . . . . . . 2 . . . 1 . . . . . . . . Authchips 1 | . . . . . . . . . . . . . . . . . . 1 . . . . . . . . Time 109 | . . . . . . . . . . . . . . 36 . . . 73 . . . . . . . . Total Part Build Rating 9 | . . . . . . . . . . . . . . 6 . . . 3 . . . . . . . . Parts Repaired 16 | . . . 3 . . . 6 . 3 . 1 . 2 . . 1 . . . . . . . . . . Time 541 | . . . 96 . . . 230 . 114 . 19 . 44 . . 38 . . . . . . . . . . Parts Recycled . | . . . . . . . . . . . . . . . . . . . . . . . . . . . Recycled Matter . | . . . . . . . . . . . . . . . . . . . . . . . . . . . Retrieved Matter . | . . . . . . . . . . . . . . . . . . . . . . . . . . . Retrieved Components 3 | . . . 3 . . . . . . . . . . . . . . . . . . . . . . . Parts Scanalyzed 17 | . . . . . . . 9 . 2 . 6 . . . . . . . . . . . . . . . Part Schematics Acquired 17 | . . . . . . . 9 . 2 . 6 . . . . . . . . . . . . . . . Parts Damaged 1 | . . . . . . . 1 . . . . . . . . . . . . . . . . . . . Bothacking | -11 -10 -10 -9 -9 -9 -8 -8 -8 -8 -8 -7 -7 -7 -6 -6 -5 -5 -5 -5 -4 -4 -3 -3 -2 -2 -1 ------------ Run | Scr Mat Min Mat Min Exi Min Mat Gar Mat Gar Fac Gar Fac Fac Gar Fac Gar Fac Gar Fac Gar Res Gar Res Gar Acc Used RIF Installer 8 | . . . . . . . . 1 . 1 . 1 . . 1 . 1 . 1 . 1 . . . 1 . Coupler Efficiency 2 | . . . . . . . . . . . . . . . 1 . . . 1 . . . . . . . Command Fork 1 | . . . . . . . . . . . . 1 . . . . . . . . . . . . . . Zone Cloak 1 | . . . . . . . . . . 1 . . . . . . . . . . . . . . . . Robot Detection 1 | . . . . . . . . . . . . . . . . . . . . . 1 . . . . . Watcher Feeds 1 | . . . . . . . . . . . . . . . . . . . . . . . . . 1 . Alert ID Control 1 | . . . . . . . . . . . . . . . . . 1 . . . . . . . . . Robots Hacked 115 | . . . 1 . . . . . 5 . 4 6 7 1 5 . 9 6 5 8 13 8 19 18 . . Non-combat 23 | . . . 1 . . . . . 2 . 4 . 4 1 . . . 1 . 2 . 1 1 6 . . Combat 92 | . . . . . . . . . 3 . . 6 3 . 5 . 9 5 5 6 13 7 18 12 . . Robot Hacks Applied 132 | . . . 2 . . . . . 6 . 8 7 9 1 5 . 9 7 6 8 13 10 21 20 . . parse_system 13 | . . . 1 . . . . . 1 . 3 1 1 . . . . 1 1 1 . 1 1 1 . . no_distress 2 | . . . 1 . . . . . 1 . . . . . . . . . . . . . . . . . generate_anomaly 1 | . . . . . . . . . . . 1 . . . . . . . . . . . . . . . generate_echo 1 | . . . . . . . . . . . 1 . . . . . . . . . . . . . . . start_evac 1 | . . . . . . . . . . . . . . . . . . . . . . . . 1 . . find_chute 2 | . . . . . . . . . . . 2 . . . . . . . . . . . . . . . deconstruct_machine 1 | . . . . . . . . . . . . . 1 . . . . . . . . . . . . . map_walls 1 | . . . . . . . . . . . 1 . . . . . . . . . . . . . . . find_fabricator 1 | . . . . . . . . . . . . . . . . . . . . . . . . 1 . . drop_inventory 2 | . . . . . . . . . . . . . . . . . . . . . . . . 2 . . locate_stockpiles 1 | . . . . . . . . . . . . . 1 . . . . . . . . . . . . . find_station 3 | . . . . . . . . . . . . . 1 . . . . . . 1 . 1 . . . . disarm_traps 1 | . . . . . . . . . . . . . . . . . . . . . . . . 1 . . find_shortcuts 1 | . . . . . . . . . . . . . . . . . . . . . . . 1 . . . find_garrison 1 | . . . . . . . . . 1 . . . . . . . . . . . . . . . . . link_fov 1 | . . . . . . . . . . . . . . . . . . 1 . . . . . . . . disrupt_area 3 | . . . . . . . . . . . . . . . . . . . . . 1 . 1 1 . . reboot_system 5 | . . . . . . . . . 1 . . 1 . . 1 . . . . . 1 . 1 . . . overwrite_iff 45 | . . . . . . . . . 1 . . 3 1 . 2 . 4 4 1 1 5 6 11 6 . . streamctrl_low 1 | . . . . . . . . . . . . . 1 . . . . . . . . . . . . . streamctrl_high 2 | . . . . . . . . . 1 . . . . . . . . . . . . . 1 . . . formatsys_low 5 | . . . . . . . . . . . . . 1 1 . . . . . . . 1 . 2 . . formatsys_high 38 | . . . . . . . . . . . . 2 2 . 2 . 5 1 4 5 6 1 5 5 . . Relay Couplers Released 76 | . . . . . . . . 13 . 4 . 14 . . 4 . 8 . 9 . 14 3 3 4 . . Machine Destruction 73 | . . . . . . . . 13 . 4 . 14 . . 4 . 8 . 9 . 14 . 3 4 . . Programmers 3 | . . . . . . . . . . . . . . . . . . . . . . 3 . . . . Attached 37 | . . . . . . . . 1 . . 1 4 2 1 2 . 5 1 3 3 4 1 6 3 . . Fabnet Peak Effective % . | . . . . . . . . . . . . . . . . . . . . . . . . . . . Robots Rewired 1 | . . . . . . . . . . . . . . 1 . . . . . . . . . . . . Allies Hacked 2 | . . . . . . . . . . . . . . . . . . . . . . 2 . . . . Hacks Repelled . | . . . . . . . . . . . . . . . . . . . . . . . . . . . Allies | -11 -10 -10 -9 -9 -9 -8 -8 -8 -8 -8 -7 -7 -7 -6 -6 -5 -5 -5 -5 -4 -4 -3 -3 -2 -2 -1 -------- Run | Scr Mat Min Mat Min Exi Min Mat Gar Mat Gar Fac Gar Fac Fac Gar Fac Gar Fac Gar Fac Gar Res Gar Res Gar Acc Total Allies 116 | . . 3 1 3 . . 1 . 2 . . 7 5 4 4 . 10 6 5 7 11 11 19 17 . . Largest Group 7 | . . 3 2 3 3 3 1 . 1 . . 3 3 2 6 2 4 3 3 3 4 3 3 7 . . Highest-Rated Group 300 | . . 83 52 40 40 40 16 . 29 . . 80 80 85 129 41 119 108 114 186 159 147 175 300 . . Highest-Rated Ally 137 | . . 31 31 16 16 16 16 . 29 . . 32 32 85 32 22 49 49 85 137 49 64 64 69 . . Total Orders 38 | . . 3 5 . . . . . . . . . . 5 7 . 6 2 3 . 3 . . 4 . . STAY 11 | . . . 3 . . . . . . . . . . 1 1 . 1 . 2 . 2 . . 1 . . FOLLOW 9 | . . . 2 . . . . . . . . . . 1 1 . 2 . 1 . 1 . . 1 . . GUARD 2 | . . . . . . . . . . . . . . . 2 . . . . . . . . . . . AID 10 | . . . . . . . . . . . . . . 2 3 . 3 . . . . . . 2 . . DROP 1 | . . . . . . . . . . . . . . 1 . . . . . . . . . . . . EXPLORE 2 | . . . . . . . . . . . . . . . . . . 2 . . . . . . . . RETURN 3 | . . 3 . . . . . . . . . . . . . . . . . . . . . . . . Ally Attacks 492 | . . . 3 . . 26 1 . 4 . . 28 29 21 22 . 47 28 47 41 38 48 55 54 . . Total Damage 14963 | . . . 21 . . 281 17 . 52 . . 605 1534 604 879 . 1030 999 1310 1581 1137 1188 1685 2040 . . Kills 105 | . . . 1 . . 5 . . 1 . . 7 12 4 6 . 9 3 9 9 9 10 8 12 . . Allies Corrupted 2 | . . . . . . . . . . . . . 1 . . . . 1 . . . . . . . . Allies Melted 3 | . . . . . . . . . . . . . . 1 . . 2 . . . . . . . . . Field Lobotomies 5 | . . . . . . . 1 . . . . 2 . 2 . . . . . . . . . . . . Intel | -11 -10 -10 -9 -9 -9 -8 -8 -8 -8 -8 -7 -7 -7 -6 -6 -5 -5 -5 -5 -4 -4 -3 -3 -2 -2 -1 ------- Run | Scr Mat Min Mat Min Exi Min Mat Gar Mat Gar Fac Gar Fac Fac Gar Fac Gar Fac Gar Fac Gar Res Gar Res Gar Acc Robot Analysis Total 4 | . 1 . 1 . . . 1 . . . 1 . . . . . . . . . . . . . . . Derelict Logs Recovered 5 | . . 3 . 2 . . . . . . . . . . . . . . . . . . . . . . Drone Launches 5 | . . 3 . . . . . . . . . . . . . . . 2 . . . . . . . . Drone Recoveries 3 | . . 3 . . . . . . . . . . . . . . . . . . . . . . . . Exploration | -11 -10 -10 -9 -9 -9 -8 -8 -8 -8 -8 -7 -7 -7 -6 -6 -5 -5 -5 -5 -4 -4 -3 -3 -2 -2 -1 ------------- Run | Scr Mat Min Mat Min Exi Min Mat Gar Mat Gar Fac Gar Fac Fac Gar Fac Gar Fac Gar Fac Gar Res Gar Res Gar Acc Turns Passed 33124 | 165 1106 1416 2167 772 1482 315 1555 1112 1213 581 5036 1250 1637 2014 629 462 874 1230 1908 564 1667 678 972 1582 72 665 Spaces Moved 12996 | 88 561 826 911 292 615 124 545 544 465 204 1756 564 659 630 205 165 260 439 633 174 541 171 293 558 128 645 Core 591 | 7 . . . . . . . . . . . . . . . . . . . . . . . 61 128 395 Treads 12248 | 81 561 826 911 292 615 124 545 544 465 204 1756 564 659 630 205 165 260 439 633 174 541 92 280 497 . 185 Legs 65 | . . . . . . . . . . . . . . . . . . . . . . . . . . 65 Wheels 92 | . . . . . . . . . . . . . . . . . . . . . . 79 13 . . . Hover . | . . . . . . . . . . . . . . . . . . . . . . . . . . . Flight . | . . . . . . . . . . . . . . . . . . . . . . . . . . . Fastest Speed 50 | 50 160 160 160 240 160 240 160 160 160 240 240 156 156 240 245 245 245 163 240 240 240 165 210 50 50 50 Average Speed 203 | 152 160 160 176 240 238 240 170 165 198 240 248 179 197 243 245 245 245 197 240 240 245 224 239 219 50 84 Slowest Speed 640 | 160 160 240 240 240 240 240 240 170 240 240 250 243 240 245 245 245 245 245 243 243 250 640 320 240 50 145 Overloaded Moves . | . . . . . . . . . . . . . . . . . . . . . . . . . . . Propulsion Burnouts . | . . . . . . . . . . . . . . . . . . . . . . . . . . . Robots Hopped . | . . . . . . . . . . . . . . . . . . . . . . . . . . . Cave-ins Triggered . | . . . . . . . . . . . . . . . . . . . . . . . . . . . Exploration Rate (%) 46 | 6 84 101 81 56 93 46 57 76 40 57 51 92 15 19 40 4 39 18 66 5 78 8 65 13 34 15 Regions Visited 26 Branch Regions 4 Pre-discovered Areas 2 | . . 1 . 1 . . . . . . . . . . . . . . . . . . . . . . Known Exits Taken 12 | . . . 1 . . 1 1 . 1 . 1 . 1 1 . 1 . 1 . 1 . 1 . 1 . . Unknown Exits Taken 5 | 1 1 1 . 1 1 . . . . . . . . . . . . . . . . . . . . . Scrap Searched 2 | . . 1 . 1 . . . . . . . . . . . . . . . . . . . . . . Spaces Dug 42 | . . 6 4 . . . 1 . . . 2 2 2 6 . . 1 2 9 1 . . . 2 . 4 Terrain Destroyed 747 | . . 6 104 . . . 8 19 1 85 35 89 32 90 . . 18 32 70 2 12 21 89 26 . 8 Melee 24 | . . . 1 . . . 1 . . . 2 2 2 6 . . 1 2 6 1 . . . . . . Projectile 89 | . . 6 3 . . . . 1 . . 3 1 . . . . . . 12 1 12 4 12 26 . 8 AOE 632 | . . . 100 . . . 7 18 . 85 29 86 30 84 . . 17 30 52 . . 17 77 . . . Terrain Rammed . | . . . . . . . . . . . . . . . . . . . . . . . . . . . Walls Destroyed . | . . . . . . . . . . . . . . . . . . . . . . . . . . . Machines Disabled . | . . . . . . . . . . . . . . . . . . . . . . . . . . . Actions | -11 -10 -10 -9 -9 -9 -8 -8 -8 -8 -8 -7 -7 -7 -6 -6 -5 -5 -5 -5 -4 -4 -3 -3 -2 -2 -1 --------- Run | Scr Mat Min Mat Min Exi Min Mat Gar Mat Gar Fac Gar Fac Fac Gar Fac Gar Fac Gar Fac Gar Res Gar Res Gar Acc Total 17159 | 106 663 884 1241 319 630 138 958 651 675 250 2193 710 876 906 294 223 434 657 871 269 759 325 467 779 135 746 Wait 1603 | . 18 37 119 3 5 11 248 12 117 2 199 24 96 101 43 55 94 81 91 31 47 20 15 58 8 68 Move 12976 | 87 560 825 910 291 614 123 545 543 465 203 1756 563 658 630 204 164 259 438 632 174 540 171 292 558 127 644 Hop . | . . . . . . . . . . . . . . . . . . . . . . . . . . . Pick Up 273 | 7 13 3 26 . 1 . 12 6 16 6 22 13 12 12 5 1 10 15 18 5 25 13 14 12 . 6 Fast Attach 130 | 5 . . 10 3 3 1 14 2 1 2 8 4 7 8 . 1 . 7 5 2 11 8 11 7 . 10 Attach 119 | 2 . . 6 . . . 4 4 . 6 5 7 10 5 . 2 1 9 8 7 11 10 7 9 . 6 Detach 16 | . . . 2 . . . . . . . 1 2 2 . . . . 2 1 1 . . 2 1 . 2 Swap 345 | . 10 6 24 . 2 . 13 6 14 3 24 16 18 31 9 . 21 23 20 10 24 19 25 27 . . Drop 233 | . 9 1 27 . 4 1 15 9 11 2 35 7 2 15 5 . 5 14 12 1 19 6 13 19 . 1 Fire 1347 | 5 53 12 114 22 . 2 106 67 42 26 137 59 69 96 21 . 30 66 70 34 69 73 79 87 . 8 Melee 40 | . . . 3 . 1 . 1 . 7 . 4 5 2 6 . . 1 2 7 1 . . . . . . Ram . | . . . . . . . . . . . . . . . . . . . . . . . . . . . Kick . | . . . . . . . . . . . . . . . . . . . . . . . . . . . Crush 5 | . . . . . . . . . 2 . . . . 1 . . . . . . . 1 . . . 1 Escape Stasis 55 | . . . . . . . . . . . 2 10 . . 6 . 10 . 7 . 12 . 8 . . . Rewire 17 | . . . . . . . . 2 . . . . . 1 1 . 3 . . 3 1 4 1 1 . . Trap . | . . . . . . . . . . . . . . . . . . . . . . . . . . . Miscellaneous . | . . . . . . . . . . . . . . . . . . . . . . . . . . . Route ------- -11/Scrapyard -10/Materials (discovered 4 exits: *Mat x3 / *Min) -10/Mines (discovered 2 exits: *Mat x2) -9/Materials (discovered 5 exits: *Mat x3 / *Min / *Sto) -9/Mines (discovered 4 exits: *Mat x2 / *Exi / [*Zio]) -9/Exiles (discovered 2 exits: [*Min x2]) -8/Mines -8/Materials (discovered 2 exits: *Fac / Gar) -8/Garrison (discovered 3 exits: *Mat x3) -8/Materials -8/Garrison -7/Factory (discovered 4 exits: *Fac x2 / [*Low] / Gar) -7/Garrison (discovered 3 exits: *Fac x3) -7/Factory -6/Factory -6/Garrison -5/Factory (discovered 2 exits: *Fac / Gar) -5/Garrison -5/Factory (discovered 2 exits: *Fac / Gar) -5/Garrison (discovered 2 exits: *Fac x2) -4/Factory -4/Garrison (discovered 3 exits: *Res x3) -3/Research -3/Garrison (discovered 2 exits: *Res x2) -2/Research -2/Garrison -1/Access To Epsilon Eridani History --------- Turn | Location | Event 6 | -11/Scrapyard | Discovered new exit (range 16) 166 | -11/Scrapyard | Entered Materials 178 | -10/Materials | Discovered new exit (range 15) 294 | -10/Materials | Discovered new exit (range 16) 310 | -10/Materials | Build established: Mutant 1116 | -10/Materials | Central database locked down 1126 | -10/Materials | Discovered new exit (range 11) 1230 | -10/Materials | Discovered new exit (range 16) 1272 | -10/Materials | Entered Mines 1273 | -10/Mines | Met a Derelict bent on vengeance 1275 | -10/Mines | Found the Drone Emporium 1280 | -10/Mines | Assembled infested the area 1285 | -10/Mines | Assisted by a Guerilla fighting off Assembled 1285 | -10/Mines | Found Prototype Device 1320 | -10/Mines | Identified Sensor Drone Bay 1374 | -10/Mines | Learned location of Recycling (-9) 1904 | -10/Mines | Received a Mining Laser from a helpful Derelict 1986 | -10/Mines | Discovered new exit (range 4) 2159 | -10/Mines | Learned Materials emergency access door positions 2162 | -10/Mines | Learned 8 Materials zone layouts 2429 | -10/Mines | Discovered new exit (range 9) 2688 | -10/Mines | Entered Materials 2688 | -9/Materials | Accompanied by 2 allies 2688 | -9/Materials | Evolved 2 slots: Utility x2 2689 | -9/Materials | Identified exit to Mines 2689 | -9/Materials | Identified exit to Storage 2689 | -9/Materials | Identified exit to Materials 2693 | -9/Materials | Led the pair of lost Derelicts to an unsafe place 3158 | -9/Materials | Build established: Scavenger-Mutant 3206 | -9/Materials | Repaired Hacking Suite 4085 | -9/Materials | Discovered exit to Materials (range 15) 4466 | -9/Materials | Discovered exit to Materials (range 8) 4642 | -9/Materials | Repaired Lrg. Storage Unit 4784 | -9/Materials | Repaired Imp. Assault Rifle? 4785 | -9/Materials | Build established: Mutant 4855 | -9/Materials | Entered Mines 4905 | -9/Mines | Discovered exit to Materials (range 10) 5017 | -9/Mines | A weapon hastily lodged in a ceiling crevice suddenly fell to the ground 5158 | -9/Mines | A Derelict revealed a hidden shortcut to a safe place 5217 | -9/Mines | Learned 2 Materials zone layouts 5293 | -9/Mines | Learned location of Zion (-7) 5319 | -9/Mines | Discovered exit to Materials (range 6) 5471 | -9/Mines | Assisted by bots powering up and referring to "LRC-V3" 5615 | -9/Mines | Deemed a non-threat by the Exiles lab entrance 5618 | -9/Mines | Discovered new exit (range 5) 5627 | -9/Mines | Entered Exiles 5627 | -9/Exiles | Accompanied by 3 allies 5663 | -9/Exiles | Discovered new exit (range 15) 5687 | -9/Exiles | Met 8R-AWN 5728 | -9/Exiles | Met EX-HEX 5856 | -9/Exiles | Met EX-DEC 5900 | -9/Exiles | Visited The Gauntlet 6300 | -9/Exiles | Discovered new exit (range 14) 6501 | -9/Exiles | Met EX-BIN 6768 | -9/Exiles | Aligned with FarCom system 6770 | -9/Exiles | Given EX-Vault access code 6825 | -9/Exiles | Opened EX-Vault 6845 | -9/Exiles | Found Prototype Special Weapon 6845 | -9/Exiles | Identified Field Lobotomy Kit 6855 | -9/Exiles | Found Prototype Energy Cannon 6855 | -9/Exiles | Identified Latent Energy Streamer 6921 | -9/Exiles | Exiles lab attacked by MAIN.C 7109 | -9/Exiles | Left Exiles lab with Field Lobotomy Kit 7109 | -9/Exiles | Entered Mines 7109 | -8/Mines | Accompanied by 3 allies 7404 | -8/Mines | Discovered exit to Materials (range 8) 7424 | -8/Mines | Entered Materials 7424 | -8/Materials | Accompanied by 1 ally 7424 | -8/Materials | Evolved 2 slots: Propulsion x1, Utility x1 7598 | -8/Materials | Repaired Hrd. Light Armor Plating 7619 | -8/Materials | Build established: Scavenger-Mutant 7665 | -8/Materials | Repaired Imp. Assault Rifle 7717 | -8/Materials | Repaired Imp. Assault Rifle 7757 | -8/Materials | Repaired Imp. Heat Sink 7784 | -8/Materials | Repaired Lgt. Treads 7817 | -8/Materials | Repaired Hrd. Light Armor Plating 8315 | -8/Materials | Discovered new exit (range 7) 8499 | -8/Materials | Assimilated G-47 Trooper with FLK Orb 8979 | -8/Materials | Identified exit to Garrison 8979 | -8/Materials | Entered Garrison 9036 | -8/Garrison | Triggered checkpoint 9146 | -8/Garrison | Garrison Relay disabled 9289 | -8/Garrison | Triggered checkpoint 9435 | -8/Garrison | Discovered new exit (range 12) 9463 | -8/Garrison | Installed Relay Interface Framework 9572 | -8/Garrison | Triggered checkpoint 9658 | -8/Garrison | Triggered checkpoint 9679 | -8/Garrison | Garrison Relay disabled 9731 | -8/Garrison | Discovered new exit (range 13) 9828 | -8/Garrison | Triggered checkpoint 9920 | -8/Garrison | Discovered new exit (range 15) 9978 | -8/Garrison | Triggered checkpoint 10019 | -8/Garrison | Garrison Relay disabled 10091 | -8/Garrison | Entered Materials 10329 | -8/Materials | Build established: Bothacker-Mutant 10449 | -8/Materials | Core integrity fell below 50% 11158 | -8/Materials | Repaired Gauss Rifle 11204 | -8/Materials | Repaired Gauss Rifle 11231 | -8/Materials | Repaired Lgt. Treads 11247 | -8/Materials | Garrison activated, responded to threat 11291 | -8/Materials | First assault squad dispatched 11302 | -8/Materials | System corruption reached 10% 11304 | -8/Materials | Identified exit to Garrison 11304 | -8/Materials | Entered Garrison 11332 | -8/Garrison | Lost 3 parts (1p2u) 11398 | -8/Garrison | Phase Generator disabled 11466 | -8/Garrison | Triggered checkpoint 11513 | -8/Garrison | Garrison Relay disabled 11601 | -8/Garrison | Triggered checkpoint 11613 | -8/Garrison | Core integrity fell below 20% 11652 | -8/Garrison | Lost 3 parts (1p1n1u) 11670 | -8/Garrison | Destroyed 10 combat bots 11826 | -8/Garrison | Discovered new exit (range 9) 11858 | -8/Garrison | Expanded RIF knowledge: Zone Cloak 11885 | -8/Garrison | Entered Factory 11885 | -7/Factory | Evolved 2 slots: Propulsion x1, Utility x1 13856 | -7/Factory | Repaired Hrd. Medium Armor Plating 14630 | -7/Factory | Discovered new exit (range 14) 14635 | -7/Factory | Discovered new exit (range 14) 15558 | -7/Factory | Discovered new exit (range 7) 15577 | -7/Factory | Identified exit to Factory 16685 | -7/Factory | First assault squad dispatched 16710 | -7/Factory | Garrison activated, responded to threat 16755 | -7/Factory | Destroyed 7 combat bots 16900 | -7/Factory | Lost 4 parts (1p1n2w) 16921 | -7/Factory | Identified exit to Garrison 16921 | -7/Factory | Entered Garrison 16935 | -7/Garrison | Expanded RIF knowledge: Command Fork 17016 | -7/Garrison | Triggered checkpoint 17033 | -7/Garrison | Garrison Relay disabled 17104 | -7/Garrison | Assimilated G-47 Trooper with FLK Orb 17107 | -7/Garrison | Assimilated B-48 Gladiator with FLK Orb 17120 | -7/Garrison | Triggered checkpoint 17243 | -7/Garrison | Triggered checkpoint 17260 | -7/Garrison | Core integrity fell below 50% 17263 | -7/Garrison | Triggered checkpoint 17309 | -7/Garrison | Lost 4 parts (2n1u1w) 17314 | -7/Garrison | Destroyed 11 combat bots 17387 | -7/Garrison | Discovered new exit (range 8) 17442 | -7/Garrison | Triggered checkpoint 17490 | -7/Garrison | Garrison Relay disabled 17618 | -7/Garrison | Discovered new exit (range 12) 17713 | -7/Garrison | Phase Generator disabled 17786 | -7/Garrison | Garrison Relay disabled 17794 | -7/Garrison | Triggered checkpoint 17996 | -7/Garrison | Discovered new exit (range 9) 18038 | -7/Garrison | Triggered checkpoint 18110 | -7/Garrison | Garrison Relay disabled 18171 | -7/Garrison | Entered Factory 18171 | -7/Factory | Accompanied by 2 allies 18567 | -7/Factory | System corruption reached 10% 18730 | -7/Factory | Discovered exit to Factory (range 15) 18971 | -7/Factory | First assault squad dispatched 19031 | -7/Factory | Lost 3 parts (1n1u1w) 19140 | -7/Factory | Lost 3 parts (1p1u1w) 19190 | -7/Factory | Repaired Med. Treads 19484 | -7/Factory | Repaired Med. Treads 19808 | -7/Factory | Entered another Factory area 19808 | -6/Factory | Evolved 2 slots: Utility x2 20241 | -6/Factory | Fabricated Arm. Treads (x2) 20285 | -6/Factory | Build established: Bothacker-Skirmisher 20843 | -6/Factory | Spotted B-75 Beast 20846 | -6/Factory | Assimilated B-75 Beast with FLK Orb 20858 | -6/Factory | First assault squad dispatched 20928 | -6/Factory | Identified exit to Garrison 21300 | -6/Factory | Build established: Bothacker-Mutant 21408 | -6/Factory | Assimilated G-50 Soldier with FLK Orb 21822 | -6/Factory | Identified exit to Garrison 21822 | -6/Factory | Entered Garrison 21822 | -6/Garrison | Accompanied by 2 allies 21835 | -6/Garrison | Expanded RIF knowledge: Coupler Efficiency 21916 | -6/Garrison | Triggered checkpoint 22142 | -6/Garrison | Triggered checkpoint 22293 | -6/Garrison | Discovered new exit (range 9) 22346 | -6/Garrison | Triggered checkpoint 22375 | -6/Garrison | Garrison Relay disabled 22451 | -6/Garrison | Entered Factory 22451 | -5/Factory | Accompanied by 2 allies 22451 | -5/Factory | Evolved 2 slots: Utility x1, Weapon x1 22536 | -5/Factory | Repaired Arm. Treads 22628 | -5/Factory | Discovered new exit (range 11) 22651 | -5/Factory | Identified exit to Factory 22751 | -5/Factory | First assault squad dispatched 22880 | -5/Factory | Identified exit to Garrison 22889 | -5/Factory | Build established: Bothacker-Tank 22913 | -5/Factory | Entered Garrison 22913 | -5/Garrison | Accompanied by 2 allies 22926 | -5/Garrison | Expanded RIF knowledge: Alert ID Control 23141 | -5/Garrison | Garrison Relay disabled 23267 | -5/Garrison | Spotted B-75 Beast 23282 | -5/Garrison | Destroyed B-75 Beast 23495 | -5/Garrison | Discovered new exit (range 8) 23586 | -5/Garrison | Triggered checkpoint 23653 | -5/Garrison | Garrison Relay disabled 23787 | -5/Garrison | Entered Factory 23787 | -5/Factory | Accompanied by 2 allies 23951 | -5/Factory | Discovered exit to Factory (range 8) 24034 | -5/Factory | Build established: Botlord-Tank 24087 | -5/Factory | First assault squad dispatched 24305 | -5/Factory | Lost 3 parts (2n1u) 24667 | -5/Factory | Fabricated Hrd. Medium Armor Plating (x1) 24897 | -5/Factory | Garrison activated, responded to threat 24941 | -5/Factory | Lost 3 parts (1n2w) 25009 | -5/Factory | Identified exit to Garrison 25017 | -5/Factory | Entered Garrison 25054 | -5/Garrison | Triggered checkpoint 25105 | -5/Garrison | Garrison Relay disabled 25264 | -5/Garrison | Build established: Bothacker-Tank 25473 | -5/Garrison | Spotted B-75 Beast 25485 | -5/Garrison | Assimilated Beast 6a with formatsys_high 25496 | -5/Garrison | Triggered checkpoint 25577 | -5/Garrison | Discovered exit to Factory (range 11) 25696 | -5/Garrison | Triggered checkpoint 25821 | -5/Garrison | Garrison Relay disabled 26100 | -5/Garrison | Triggered checkpoint 26110 | -5/Garrison | Triggered checkpoint 26116 | -5/Garrison | Allies destroyed Beast 6a 26298 | -5/Garrison | Discovered exit to Factory (range 14) 26346 | -5/Garrison | Expanded RIF knowledge: Coupler Efficiency 26776 | -5/Garrison | Triggered checkpoint 26808 | -5/Garrison | Garrison Relay disabled 26925 | -5/Garrison | Entered Factory 26925 | -4/Factory | Accompanied by 2 allies 26925 | -4/Factory | Evolved 2 slots: Utility x2 27316 | -4/Factory | Lost 4 parts (1p1n1u1w) 27372 | -4/Factory | Garrison activated, responded to threat 27489 | -4/Factory | Identified exit to Garrison 27489 | -4/Factory | Entered Garrison 27516 | -4/Garrison | Lost 4 parts (1n2u1w) 27624 | -4/Garrison | Triggered checkpoint 27640 | -4/Garrison | Garrison Relay disabled 27826 | -4/Garrison | Triggered checkpoint 27831 | -4/Garrison | P-70 Sage assimilated allied Sentinel 7e 27868 | -4/Garrison | Triggered checkpoint 27952 | -4/Garrison | Lost 3 parts (1p2n) 28028 | -4/Garrison | Build established: Botlord-Gunner 28058 | -4/Garrison | Discovered new exit (range 12) 28126 | -4/Garrison | Triggered checkpoint 28254 | -4/Garrison | Garrison Relay disabled 28394 | -4/Garrison | Triggered checkpoint 28511 | -4/Garrison | Found Unknown Protection 28511 | -4/Garrison | Identified Adv. Powered Armor 28517 | -4/Garrison | Found Adv. Powered Armor 28523 | -4/Garrison | Found Adv. Powered Armor 28527 | -4/Garrison | Found Adv. Powered Armor 28646 | -4/Garrison | Discovered new exit (range 10) 28726 | -4/Garrison | Triggered checkpoint 28778 | -4/Garrison | Garrison Relay disabled 28894 | -4/Garrison | Triggered checkpoint 29053 | -4/Garrison | Discovered new exit (range 14) 29099 | -4/Garrison | Expanded RIF knowledge: Robot Detection 29156 | -4/Garrison | Entered Research 29156 | -3/Research | Accompanied by 3 allies 29156 | -3/Research | Evolved 2 slots: Power x1, Utility x1 29318 | -3/Research | P-80 Master assimilated allied Sentinel 7g 29516 | -3/Research | System corruption reached 10% 29581 | -3/Research | Lost 10 parts (2p4n3u1w) 29596 | -3/Research | Destroyed 7 combat bots 29656 | -3/Research | First assault squad dispatched 29736 | -3/Research | Garrison activated, responded to threat 29834 | -3/Research | Identified exit to Garrison 29834 | -3/Research | Entered Garrison 29898 | -3/Garrison | Triggered checkpoint 29950 | -3/Garrison | Garrison Relay disabled 30107 | -3/Garrison | Spotted B-86 Titan 30113 | -3/Garrison | Triggered checkpoint 30125 | -3/Garrison | Triggered checkpoint 30163 | -3/Garrison | Triggered checkpoint 30181 | -3/Garrison | Allies destroyed B-86 Titan 30181 | -3/Garrison | Triggered checkpoint 30232 | -3/Garrison | Lost 7 parts (2p2n2u1w) 30408 | -3/Garrison | Discovered new exit (range 10) 30411 | -3/Garrison | Build established: Botlord-Mutant 30489 | -3/Garrison | Phase Generator disabled 30659 | -3/Garrison | Discovered new exit (range 17) 30769 | -3/Garrison | System corruption reached 30% 30799 | -3/Garrison | Lost 5 parts (5u) 30806 | -3/Garrison | Entered Research 30806 | -2/Research | Evolved 2 slots: Utility x2 30966 | -2/Research | Found Exp. Shield Generator 31230 | -2/Research | Identified exit to Garrison 31271 | -2/Research | Garrison activated, responded to threat 32161 | -2/Research | System corruption reached 10% 32337 | -2/Research | Lost 6 parts (2n3u1w) 32345 | -2/Research | Cargo convoy interrupted 32345 | -2/Research | Spotted Executioner 32347 | -2/Research | Spotted Striker 32359 | -2/Research | Core integrity fell below 50% 32375 | -2/Research | Spotted B-90 Cyclops 32379 | -2/Research | Core integrity fell below 20% 32388 | -2/Research | Identified exit to Garrison 32388 | -2/Research | Entered Garrison 32391 | -2/Garrison | Expanded RIF knowledge: Watcher Feeds 32418 | -2/Garrison | Lost 11 parts (1p6n4u) 32434 | -2/Garrison | Spotted B-90 Cyclops 32438 | -2/Garrison | Triggered checkpoint 32457 | -2/Garrison | Discovered new exit (range 8) 32460 | -2/Garrison | Entered Access 32460 | -1/Access | Evolved 2 slots: Propulsion x2 32661 | -1/Access | Build established: Mutant 32981 | -1/Access | Found Prototype Device 32981 | -1/Access | Identified Beam Splitter 33010 | -1/Access | Spotted B-99 Colossus 33119 | -1/Access | Discovered new exit (range 6) 33125 | *** | Escaped! Last Messages --------------- 33010_ Slug penetrates Wave Collapse Detector. 33020_ U-05 Engineer builds a Wall. 33034_ Slammed into K-01 Serf. 33053_ Acquired Centrium Leg. 33058_ Slug penetrates Wall. 33058_ Slug penetrates Repair Station. 33069_ Acquired Hacking Suite. 33077_ U-05 Engineer builds a Wall. 33081_ Detecting nearby Garrison Access. 33087_ Acquired 10 matter. 33110_ ALERT: Rogue bot located, Programmers report to Access Zone 1A. 33115_ Connecting with Terminal... 33115_ Current location identified: Access >>Open(Door) Sealed Barrier opened. 33119_ The Access Shell folds into the floor. 33119_ EXIT=FOUND [Achievement: 30k Club] [Achievement: 40k Club] [Achievement: Tester] Map ----- +----------------------------------------------------+ | ?????????????????????????????????????????????????? | | ?????????????????????????????????????????????????? | | ?????????????????????????????????????????????????? | | ?????????????????????????????????????????????????? | | ?????????????????????????????????????????????????? | | ?????????????????????????????????????????????????? | | ?????????????????????????????????????????????????? | | ?????????????????????????????????????????????????? | | ?????????????????????????????????????????????????? | | ?????????????????????????????????????????????????? | | ?????????????????????????????????????????????????? | | ?????????????????????????????????????????????????? | | ???????????????????????????????????????????? ??? | | ??????????# ???????????????????????????????? #? | | ??????????# ??????????????????????????????? #? | | ??????????# ??????????????????????????????? #? | | ??????????# ??????????????????????????????# #? | | ??????????# ??????????????????????????????# #? | | ??????????# #?????###?????????????????????# #? | | ??????????# ####### ##########??#######???# +? | | ??????????# """T""" "??" ???# #? | | ??????????# """ """ "??" BB ??# #? | | ??????????# "??? BB ### ## | | ??????????# "????? | | ??????????# "" "??????? | | ??????????# @" "????????? % | | ??????????# "??????????? | | ??????????# "????BB??????# " | | ??????????# "????BB??????# """ | | ??????????# "????????????# "" | | ??????????# ####### ##########????????????# " | | ??????????# #?????### #???????????????????# | | ??????????# ########################??????# | | ??????????# ## # #??????# | | ########### ## # #??????# " | | ## # """" #??????# """ | | ## " # ""R"" ######## "" | | ##""" # "" "" # " | | """"" ## """ # % "% | | """"" # " # % ^" | | "" F" # # + | | ?# + # = # ####### | | ?# % # ""# # #?????? | | ?# ## ""# # #?????? | | ?# ## ""# # #?????? | | ?# ## T############## #?????? | | ?# ## ""#????????????# #?????? | | ?# [ ## ""#????????????# #?????? | | ?# ## ""#??????????? !! ?????? | | ?# ## #??????????? ! ????? | +----------------------------------------------------+ Best States ------------- Heat Dissipation 97 Coolant Potential 80 Energy Generation 61 Energy Capacity 400 Matter Stores 300 Matter Capacity 300 Sight Range 20 Terrain Scan Range 20 Terrain Scan Density 10 Jamming Range 12 Power Amplification 40 Additional Mass Support 9 Armor Coverage 1350 Resistance: KI 30 Resistance: TH 25 Core Shielding 20 Weapon Cycling 15 Phase Shifting 15 Evasion (%) 55 Targeting Accuracy 16 Core Analysis 6 Recoil Reduction 4 Offensive Hacking 22 Defensive Hacking 10 Relay Coupler Types 7 Relay Coupler Value 174 Authchip Count 4 Item Schematics ----------------- Imp. Datajack | -8/Materials | Scanalyzed Lgt. Armor Plating | -8/Materials | Scanalyzed Imp. Treads | -8/Materials | Scanalyzed Scythe | -8/Materials | Scanalyzed Lgt. Angular Momentum Engine | -8/Materials | Scanalyzed Imp. Assault Rifle | -8/Materials | Scanalyzed Imp. Heat Sink | -8/Materials | Scanalyzed Hrd. Light Armor Plating | -8/Materials | Scanalyzed Flak Cannon | -8/Materials | Scanalyzed Graphene Brace | -8/Materials | Scanalyzed System Shield | -8/Materials | Scanalyzed Hrd. Medium Armor Plating | -7/Factory | Scanalyzed Lrn. Tractor Beam | -7/Factory | Scanalyzed Arm. Treads | -7/Factory | Scanalyzed Imp. Signal Interpreter | -7/Factory | Scanalyzed Gauss Rifle | -7/Factory | Scanalyzed Hacking Suite | -7/Factory | Scanalyzed Robot Schematics ------------------ None Fabricated ------------ Arm. Treads | x2 | -6/Factory Hrd. Medium Armor Plating | x1 | -5/Factory | Authchip Alien Tech Used ----------------- None Achievements -------------- 30k Club 40k Club Assimilation Complete Beloved Collateral Damage Factory Defaults Fearless Generalissimo Infiltrator Pwned Tank Tester Use The Force Challenges ------------ None Game ------ Seed MasterGravitonCloak Manual? 0 Play Time 07:31:24 Cumulative 117.6 hours Start 2022.12.19 @ 18:32:30 End 2022.12.22 @ 13:38:42 Sessions 13 Manual Loads 0 Difficulty Rogue Special Mode None Game No. 85 Rogue 85 Adventurer 0 Explorer 0 Win Type 0 Total 3 Types 2/0/0/1/0/0/0/0/0 Lore% 50 Gallery% 52 Achievement% 49 Wizard Run 0 Options --------- ASCII 0 Keyboard 1 Movement Arrows Keybinds 0 Fullscreen 2 Font 18/SmallcapsGlow Map View 76x50 Tactical HUD 1 Map Filters NONE Filters NONE Steam 1 RUN: fa02d0e3-d94b-45fe-b280-0ecd0e7958c0